fUST/lending_fUST_20250820
["ID","MTS","AMOUNT","RATE_DAILY","PERIOD"]
[380312085,1755655839262,-482.95788258,0.00019178,2]
[380312086,1755655839271,-484.02335717,0.00019178,2]
[380312087,1755655839281,-480.0,0.00019178,2]
[380312088,1755655839291,-386.5517297,0.00019178,2]
[380312089,1755655839301,-490.1879291,0.00019178,2]
[380312090,1755655839310,-480.0,0.00019178,2]
[380312091,1755655839320,-480.0,0.00019178,2]
[380312092,1755655839330,-480.0,0.00019178,2]
[380312093,1755655839339,-489.65594513,0.00019178,2]
[380312094,1755655839349,-494.43666343,0.00019178,2]
[380312095,1755655839358,-486.17180005,0.00019178,2]
[380312096,1755655839368,-480.0,0.00019178,2]
[380312098,1755655839378,-487.97440642,0.00019178,2]
[380312099,1755655839387,-491.36530586,0.00019178,2]
[380312100,1755655839397,-490.91101097,0.00019178,2]
[380312101,1755655839406,-558.41193128,0.00019178,2]
[380312102,1755655839419,-448.46437278,0.00019178,2]
[380312103,1755655839429,-488.24567686,0.00019178,2]
[380312104,1755655839438,-486.37575279,0.00019178,2]
[380312105,1755655839448,-463.46544709,0.00019178,2]
[380312106,1755655839458,-483.64367728,0.00019178,2]
[380312107,1755655839468,-486.31663725,0.00019178,2]
[380312108,1755655839478,-480.0,0.00019178,2]
[380312110,1755655839488,-490.58319882,0.00019178,2]
[380312112,1755655839498,-488.58854468,0.00019178,2]
[380312113,1755655839507,-509.43019334,0.00019178,2]
[380312114,1755655839517,-488.97751376,0.00019178,2]
[380312115,1755655839526,-443.87586564,0.00019178,2]
[380312116,1755655839535,-480.0,0.00019178,2]
[380312117,1755655839545,-488.95822006,0.00019178,2]
[380312118,1755655839554,-480.0,0.00019178,2]
[380312119,1755655839564,-480.0,0.00019178,2]
[380312120,1755655839574,-480.0,0.00019178,2]
[380312121,1755655839585,-487.65475826,0.00019178,2]
[380312122,1755655839595,-475.15741724,0.00019178,2]
[380312123,1755655839604,-480.0,0.00019178,2]
[380312124,1755655839614,-480.0,0.00019178,2]
[380312125,1755655839623,-480.0,0.00019178,2]
[380312126,1755655839632,-483.84021078,0.00019178,2]
[380312127,1755655839642,-495.15609949,0.00019178,2]
[380312128,1755655839652,-501.98599335,0.00019178,2]
[380312129,1755655839662,-480.0,0.00019178,2]
[380312130,1755655839671,-504.85465947,0.00019178,2]
[380312131,1755655839680,-571.09119106,0.00019178,2]
[380312132,1755655839690,-490.2110238,0.00019178,2]
[380312133,1755655839701,-324.25038345,0.00019178,2]
[380312134,1755655839710,-483.97732535,0.00019178,2]
[380312135,1755655839721,-525.05436899,0.00019178,2]
[380312136,1755655839731,-557.02,0.00019178,2]
[380312137,1755655839740,-490.49524142,0.00019178,2]
[380312138,1755655839750,-493.0471948,0.00019178,2]
[380312139,1755655839760,-487.53688908,0.00019178,2]
[380312140,1755655839770,-480.0,0.00019178,2]
[380312141,1755655839780,-480.0,0.00019178,2]
[380312142,1755655839790,-483.48495048,0.00019178,2]
[380312143,1755655839800,-480.0,0.00019178,2]
[380312144,1755655839810,-480.0,0.00019178,2]
[380312145,1755655839820,-480.0,0.00019178,2]
[380312146,1755655839829,-480.0,0.00019178,2]
[380312147,1755655839839,-451.92890971,0.00019178,2]
[380312148,1755655839849,-487.0093788,0.00019178,2]
[380312149,1755655839859,-499.73194828,0.00019178,2]
[380312150,1755655839869,-480.0,0.00019178,2]
[380312151,1755655839879,-490.89,0.00019178,2]
[380312152,1755655839888,-480.0,0.00019178,2]
[380312153,1755655839898,-476.13624966,0.00019178,2]
[380312154,1755655839907,-2000.0,0.00019178,7]
[380312155,1755655839916,-600.0,0.00019378,20]
[380312156,1755655839925,-328.76,0.00019442,3]
[380312157,1755655839934,-480.0,0.00019452,2]
[380312158,1755655839943,-480.0,0.00019452,2]
[380312159,1755655839952,-480.0,0.00019452,2]
[380312160,1755655839961,-480.0,0.00019452,2]
[380312161,1755655839971,-480.0,0.00019452,2]
[380312162,1755655839980,-161.29936692,0.00019452,2]
[380312163,1755655839989,-480.0,0.00019452,2]
[380312164,1755655839998,-487.81361343,0.00019452,2]
[380312166,1755655840111,-484.5565481,0.00019452,2]
[380312167,1755655840121,-201.23226542,0.00019452,2]
[380312168,1755655840131,-392.95879002,0.00019452,2]
[380312169,1755655840142,-579.10980014,0.00019452,2]
[380312170,1755655840151,-486.93766522,0.00019452,2]
[380312171,1755655840161,-480.0,0.00019452,2]
[380312172,1755655840170,-485.77493687,0.00019452,2]
[380312173,1755655840179,-480.0,0.00019452,2]
[380312174,1755655840189,-195.76335848,0.00019452,2]
[380312175,1755655840199,-490.04604179,0.00019452,2]
[380312176,1755655840209,-488.11402368,0.00019452,2]
[380312177,1755655840219,-494.36540463,0.00019452,2]
[380312178,1755655840228,-490.43330024,0.00019452,2]
[380312179,1755655840238,-518.96554944,0.00019452,2]
[380312180,1755655840247,-485.71,0.00019452,2]
[380312182,1755655840257,-487.42752141,0.00019452,2]
[380312183,1755655840266,-480.0,0.00019452,2]
[380312184,1755655840275,-487.49328582,0.00019452,2]
[380312185,1755655840284,-484.89558389,0.00019452,2]
[380312186,1755655840293,-231.714878,0.00019452,2]
[380312187,1755655840302,-480.0,0.00019452,2]
[380312188,1755655840311,-490.51940261,0.00019452,2]
[380312189,1755655840320,-480.0,0.00019452,2]
[380312190,1755655840329,-480.0,0.00019452,2]
[380312191,1755655840338,-480.0,0.00019452,2]
[380312192,1755655840347,-480.0,0.00019452,2]
[380312193,1755655840356,-454.45318124,0.00019452,2]
[380312194,1755655840365,-480.0,0.00019452,2]
[380312195,1755655840375,-480.0,0.00019452,2]
[380312196,1755655840385,-480.0,0.00019452,2]
[380312197,1755655840393,-224.07273691,0.00019452,2]
[380312198,1755655840403,-480.0,0.00019452,2]
[380312199,1755655840418,-495.2,0.00019452,2]
[380312200,1755655840428,-512.04192309,0.00019452,2]
[380312201,1755655840437,-480.0,0.00019452,2]
[380312202,1755655840447,-480.0,0.00019452,2]
[380312203,1755655840457,-480.0,0.00019452,2]
[380312204,1755655840466,-557.02,0.00019452,2]
[380312205,1755655840476,-491.1108514,0.00019452,2]
[380312206,1755655840486,-480.0,0.00019452,2]
[380312207,1755655840497,-381.96364825,0.00019452,2]
[380312208,1755655840507,-480.0,0.00019452,2]
[380312209,1755655840516,-480.0,0.00019452,2]
[380312210,1755655840525,-480.0,0.00019452,2]
[380312211,1755655840534,-480.0,0.00019452,2]
[380312213,1755655840544,-490.89,0.00019452,2]
[380312215,1755655840553,-480.0,0.00019452,2]
[380312217,1755655840565,-2227.5901618,0.00019553,2]
[380312218,1755655840574,-257.98292303,0.00019721,2]
[380312220,1755655840584,-480.0,0.00019726,2]
[380312221,1755655840594,-285.13863818,0.00019726,2]
[380312222,1755655840603,-539.26,0.00019726,2]
[380312223,1755655840612,-342.31567371,0.00019726,2]
[380312224,1755655840622,-374.31973545,0.00019726,2]
[380312225,1755655840632,-480.0,0.00019726,2]
[380312226,1755655840641,-480.0,0.00019726,2]
[380312228,1755655840650,-241.07877417,0.00019726,2]
[380312229,1755655840659,-514.48874469,0.00019726,2]
[380312230,1755655840669,-260.10733486,0.00019726,2]
[380312231,1755655840678,-480.0,0.00019726,2]
[380312233,1755655840687,-239.69088228,0.00019726,2]
[380312234,1755655840696,-249.97774687,0.00019726,2]
[380312235,1755655840706,-480.0,0.00019726,2]
[380312236,1755655840715,-480.0,0.00019726,2]
[380312237,1755655840724,-480.0,0.00019726,2]
[380312238,1755655840734,-179.74352159,0.00019726,2]
[380312239,1755655840744,-480.0,0.00019726,2]
[380312240,1755655840754,-557.02,0.00019726,2]
[380312241,1755655840763,-480.0,0.00019726,2]
[380312242,1755655840772,-480.0,0.00019726,2]
[380312243,1755655840781,-285.95703705,0.00019726,2]
[380312244,1755655840790,-480.0,0.00019726,2]
[380312245,1755655840799,-480.0,0.00019726,2]
[380312246,1755655840807,-490.89,0.00019726,2]
[380312247,1755655840816,-581.7415532,0.00019726,2]
[380312248,1755655840825,-2000.0,0.000198,2]
[380312249,1755655840834,-2000.0,0.000198,3]
[380312250,1755655840843,-2000.0,0.000198,4]
[380312251,1755655840853,-2000.0,0.000198,5]
[380312252,1755655840862,-2000.0,0.000198,6]
[380312253,1755655840871,-325.735415,0.00019863,2]
[380312254,1755655840881,-500.83584189,0.00019998,2]
[380312255,1755655840890,-504.34021811,0.00019998,2]
[380312256,1755655840899,-483.03732113,0.00019998,2]
[380312257,1755655840909,-485.34418633,0.00019998,2]
[380312258,1755655840919,-483.67425436,0.00019998,2]
[380312259,1755655840929,-485.77559508,0.00019998,2]
[380312260,1755655840939,-480.0,0.00019998,2]
[380312261,1755655840948,-480.0,0.00019998,2]
[380312262,1755655840958,-480.0,0.00019998,2]
[380312263,1755655840967,-480.0,0.00019998,2]
[380312264,1755655840977,-480.0,0.00019998,2]
[380312265,1755655840987,-480.0,0.00019998,2]
[380312266,1755655840996,-443.41280268,0.00019998,2]
[380312267,1755655841005,-480.0,0.00019998,2]
[380312268,1755655841014,-487.96660027,0.00019998,2]
[380312269,1755655841024,-405.25730266,0.00019998,2]
[380312270,1755655841032,-486.17504042,0.00019998,2]
[380312271,1755655841042,-488.33261136,0.00019998,2]
[380312272,1755655841051,-480.0,0.00019998,2]
[380312273,1755655841060,-482.05244375,0.00019998,2]
[380312274,1755655841069,-500.0,0.00019998,2]
[380312275,1755655841079,-480.0,0.00019998,2]
[380312276,1755655841088,-480.0,0.00019998,2]
[380312277,1755655841098,-445.0,0.00019998,2]
[380312278,1755655841107,-480.0,0.00019998,2]
[380312279,1755655841117,-485.10586941,0.00019998,2]
[380312280,1755655841126,-379.06580358,0.00019998,2]
[380312281,1755655841136,-481.75410602,0.00019998,2]
[380312282,1755655841145,-484.25500139,0.00019998,2]
[380312283,1755655841154,-482.07606596,0.00019998,2]
[380312284,1755655841163,-481.16415768,0.00019998,2]
[380312286,1755655841173,-482.99850501,0.00019998,2]
[380312288,1755655841182,-483.80575541,0.00019998,2]
[380312289,1755655841191,-462.06868706,0.00019998,2]
[380312291,1755655841201,-480.0,0.00019998,2]
[380312293,1755655841210,-497.23645208,0.00019998,2]
[380312294,1755655841220,-480.0,0.00019998,2]
[380312295,1755655841231,-407.47026237,0.0002,2]
[380312296,1755655841241,-480.0,0.0002,2]
[380312298,1755655841251,-523.48200211,0.0002,2]
[380312299,1755655841260,-480.0,0.0002,2]
[380312300,1755655841270,-480.0,0.0002,2]
[380312301,1755655841279,-405.85575377,0.0002,2]
[380312302,1755655841288,-557.02,0.0002,2]
[380312303,1755655841297,-480.0,0.0002,2]
[380312304,1755655841307,-480.0,0.0002,2]
[380312305,1755655841316,-480.0,0.0002,2]
[380312306,1755655841325,-480.0,0.0002,2]
[380312307,1755655841335,-490.89,0.0002,2]
[380312308,1755655841344,-1652.72530425,0.00020195,2]
[380312309,1755655841353,-492.25063062,0.00020272,2]
[380312310,1755655841363,-484.25735511,0.00020272,2]
[380312311,1755655841372,-485.09684905,0.00020272,2]
[380312312,1755655841381,-484.60492667,0.00020272,2]
[380312313,1755655841391,-480.0,0.00020272,2]
[380312314,1755655841400,-203.31757557,0.00020272,2]
[380312315,1755655841411,-492.40355883,0.00020272,2]
[380312316,1755655841421,-480.0,0.00020273,2]
[380312317,1755655841431,-480.0,0.00020273,2]
[380312318,1755655841440,-616.44,0.00020273,2]
[380312319,1755655841450,-557.02,0.00020273,2]
[380312320,1755655841460,-480.0,0.00020273,2]
[380312321,1755655841469,-480.0,0.00020273,2]
[380312322,1755655841479,-156.34,0.00020273,2]
[380312323,1755655841489,-480.0,0.00020273,2]
[380312324,1755655841499,-490.89,0.00020273,2]
[380312325,1755655841508,-480.0,0.00020547,2]
[380312326,1755655841517,-480.0,0.00020547,2]
[380312327,1755655841526,-557.02,0.00020547,2]
[380312328,1755655841536,-480.0,0.00020547,2]
[380312329,1755655841545,-480.0,0.00020547,2]
[380312330,1755655841554,-480.0,0.00020547,2]
[380312331,1755655841564,-490.89,0.00020547,2]
[380312332,1755655841574,-420.0,0.00020709,2]
[380312333,1755655841584,-303.0,0.00020709,2]
[380312334,1755655841592,-317.0,0.00020709,2]
[380312335,1755655841601,-347.0,0.00020808,2]
[380312336,1755655841611,-480.0,0.00020821,2]
[380312337,1755655841620,-480.0,0.00020821,2]
[380312338,1755655841629,-557.02,0.00020821,2]
[380312339,1755655841639,-480.0,0.00020821,2]
[380312340,1755655841648,-480.0,0.00020821,2]
[380312341,1755655841657,-480.0,0.00020821,2]
[380312342,1755655841666,-490.89,0.00020821,2]
[380312343,1755655841676,-168.691601,0.00021,2]
[380312344,1755655841686,-480.0,0.00021095,2]
[380312345,1755655841695,-480.0,0.00021095,2]
[380312346,1755655841704,-557.02,0.00021095,2]
[380312347,1755655841713,-480.0,0.00021095,2]
[380312348,1755655841723,-480.0,0.00021095,2]
[380312349,1755655841733,-572.03736833,0.00021095,2]
[380312350,1755655841743,-490.89,0.00021095,2]
[380312351,1755655841752,-720.0,0.00021316,20]
[380312352,1755655841761,-1652.72530425,0.00021323,2]
[380312353,1755655841771,-160.0,0.0002134,2]
[380312354,1755655841780,-480.0,0.00021369,2]
[380312355,1755655841789,-480.0,0.00021369,2]
[380312356,1755655841799,-557.02,0.00021369,2]
[380312357,1755655841808,-480.0,0.00021369,2]
[380312358,1755655841817,-480.0,0.00021369,2]
[380312359,1755655841827,-490.89,0.00021369,2]
[380312360,1755655841837,-160.0,0.00021551,2]
[380312361,1755655841846,-844.05985274,0.00021551,2]
[380312362,1755655841855,-232.24568399,0.00021551,2]
[380312363,1755655841864,-216.9170744,0.00021552,2]
[380312364,1755655841873,-160.0,0.00021552,2]
[380312365,1755655841883,-375.94359665,0.00021552,2]
[380312366,1755655841892,-480.0,0.00021643,2]
[380312367,1755655841901,-480.0,0.00021643,2]
[380312368,1755655841911,-557.02,0.00021643,2]
[380312369,1755655841921,-480.0,0.00021643,2]
[380312370,1755655841930,-480.0,0.00021643,2]
[380312371,1755655841939,-490.89,0.00021643,2]
[380312372,1755655841948,-260.0,0.00021888,2]
[380312373,1755655841957,-2463.61702464,0.000219,2]
[380312374,1755655841968,-480.0,0.00021917,2]
[380312375,1755655841977,-480.0,0.00021917,2]
[380312376,1755655841987,-557.02,0.00021917,2]
[380312377,1755655841997,-590.10461442,0.00021917,2]
[380312378,1755655842006,-480.0,0.00021917,2]
[380312379,1755655842015,-972.16,0.00022,7]
[380312380,1755655842026,-4484.33,0.00022,7]
[380312381,1755655842035,-11943.11,0.00022,7]
[380312382,1755655842045,-12687.94051737,0.00022,7]
[380312383,1755655842054,-375.94359665,0.00022,7]
[380312384,1755655842063,-215.82729805,0.00022,7]
[380312385,1755655842074,-480.0,0.00022191,2]
[380312386,1755655842083,-480.0,0.00022191,2]
[380312387,1755655842093,-557.02,0.00022191,2]
[380312388,1755655842105,-480.0,0.00022191,2]
[380312389,1755655842115,-177.33907566,0.000222,69]
[380312390,1755655842124,-360.0,0.00022436,2]
[380312391,1755655842134,-1652.72530425,0.00022451,2]
[380312392,1755655842143,-480.0,0.00022465,2]
[380312393,1755655842153,-480.0,0.00022465,2]
[380312394,1755655842162,-557.02,0.00022465,2]
[380312395,1755655842171,-305.74,0.00022465,2]
[380312396,1755655842180,-587.0,0.00022573,2]
[380312397,1755655842190,-480.0,0.00022739,2]
[380312398,1755655842199,-480.0,0.00022739,2]
[380312399,1755655842208,-557.02,0.00022739,2]
[380312400,1755655842219,-2463.6170246,0.00022875,2]
[380312401,1755655842228,-177.33907565,0.00022932,72]
[380312402,1755655842238,-460.0,0.00022984,2]
[380312403,1755655842246,-160.0,0.00023,2]
[380312404,1755655842255,-480.0,0.00023013,2]
[380312405,1755655842265,-480.0,0.00023013,2]
[380312406,1755655842274,-557.02,0.00023013,2]
[380312407,1755655842283,-426.72805666,0.00023287,2]
[380312408,1755655842294,-480.0,0.00023287,2]
[380312409,1755655842303,-557.02,0.00023287,2]
[380312411,1755655842312,-325.735415,0.00023288,2]
[380312412,1755655842322,-864.0,0.00023447,20]
[380312413,1755655842331,-11184.08738197,0.00023487,2]
[380312414,1755655842341,-11943.11,0.000235,7]
[380312415,1755655842351,-560.0,0.00023532,2]
[380312416,1755655842360,-480.0,0.00023561,2]
[380312418,1755655842369,-557.02,0.00023561,2]
[380312420,1755655842378,-1652.72530425,0.00023579,2]
[380312421,1755655842387,-153.0,0.00023587,2]
[380312422,1755655842399,-153.0,0.00023587,2]
[380312423,1755655842411,-153.0,0.00023587,2]
[380312425,1755655842423,-153.0,0.00023587,2]
[380312427,1755655842433,-153.0,0.00023587,2]
[380312430,1755655842442,-153.0,0.00023587,2]
[380312433,1755655842451,-153.0,0.00023587,2]
[380312437,1755655842462,-153.0,0.00023587,2]
[380312439,1755655842473,-153.0,0.00023587,2]
[380312441,1755655842482,-153.0,0.00023587,2]
[380312443,1755655842492,-153.0,0.00023587,2]
[380312445,1755655842501,-153.0,0.00023587,2]
[380312446,1755655842511,-153.0,0.00023587,2]
[380312447,1755655842521,-153.0,0.00023587,2]
[380312448,1755655842530,-153.0,0.00023587,2]
[380312450,1755655842539,-153.0,0.00023591,2]
[380312452,1755655842549,-153.0,0.00023591,2]
[380312454,1755655842558,-153.0,0.00023591,2]
[380312456,1755655842567,-153.0,0.00023591,2]
[380312458,1755655842576,-153.0,0.00023591,2]
[380312460,1755655842584,-153.0,0.00023591,2]
[380312461,1755655842593,-153.0,0.00023591,2]
[380312462,1755655842602,-153.0,0.00023591,2]
[380312463,1755655842611,-153.0,0.00023591,2]
[380312464,1755655842620,-153.0,0.00023591,2]
[380312465,1755655842630,-153.0,0.00023591,2]
[380312466,1755655842639,-153.0,0.00023591,2]
[380312467,1755655842742,-153.0,0.00023591,2]
[380312468,1755655842752,-153.0,0.00023591,2]
[380312469,1755655842762,-153.0,0.00023591,2]
[380312470,1755655842772,-153.0,0.00023591,2]
[380312471,1755655842781,-153.0,0.00023591,2]
[380312473,1755655842790,-153.0,0.00023591,2]
[380312474,1755655842800,-153.0,0.00023591,2]
[380312475,1755655842810,-153.0,0.00023591,2]
[380312476,1755655842819,-153.0,0.00023591,2]
[380312477,1755655842829,-153.0,0.00023591,2]
[380312478,1755655842839,-153.0,0.00023591,2]
[380312479,1755655842848,-153.0,0.00023591,2]
[380312480,1755655842858,-153.0,0.00023591,2]
[380312481,1755655842867,-153.0,0.00023591,2]
[380312482,1755655842876,-153.0,0.00023591,2]
[380312483,1755655842886,-153.0,0.00023591,2]
[380312484,1755655842895,-153.0,0.00023591,2]
[380312485,1755655842905,-153.0,0.00023591,2]
[380312486,1755655842914,-153.0,0.00023591,2]
[380312488,1755655842923,-153.0,0.00023591,2]
[380312489,1755655842933,-153.0,0.00023591,2]
[380312491,1755655842942,-153.0,0.00023591,2]
[380312492,1755655842951,-153.0,0.00023591,2]
[380312493,1755655842960,-153.0,0.00023591,2]
[380312495,1755655842971,-153.0,0.00023591,2]
[380312497,1755655842980,-153.0,0.00023591,2]
[380312499,1755655842989,-153.0,0.00023591,2]
[380312502,1755655842998,-153.0,0.00023591,2]
[380312504,1755655843008,-153.0,0.00023591,2]
[380312506,1755655843017,-153.0,0.00023591,2]
[380312507,1755655843027,-153.0,0.00023591,2]
[380312508,1755655843037,-153.0,0.00023591,2]
[380312509,1755655843047,-153.0,0.00023591,2]
[380312510,1755655843056,-487.14651893,0.00023597,2]
[380312511,1755655843066,-4310.47225349,0.000236,7]
[380312512,1755655843084,-500.0,0.00023714,2]
[380312513,1755655843105,-5815.10660255,0.00023721,2]
[380312515,1755655843115,-1662.90418616,0.00023731,2]
[380312516,1755655843125,-1200.0,0.00023738,2]
[380312517,1755655843134,-2557.5028944,0.0002374,2]
[380312518,1755655843144,-5815.10660255,0.00023747,2]
[380312519,1755655843154,-1047.02650329,0.00023756,2]
[380312520,1755655843163,-1047.02650329,0.00023774,2]
[380312521,1755655843173,-1662.90418616,0.00023779,2]
[380312522,1755655843183,-949.63447655,0.00023782,2]
[380312523,1755655843192,-949.63447655,0.000238,2]
[380312524,1755655843202,-4484.33,0.000238,7]
[380312525,1755655843211,-151.0,0.000238,10]
[380312526,1755655843225,-480.0,0.00023835,2]
[380312527,1755655843234,-557.02,0.00023835,2]
[380312528,1755655843244,-151.0,0.00023836,2]
[380312529,1755655843254,-151.90987177,0.00023836,2]
[380312530,1755655843264,-198.80407017,0.00023836,2]
[380312531,1755655843273,-199.38470681,0.00023836,2]
[380312532,1755655843282,-151.0,0.00023836,2]
[380312533,1755655843292,-151.0,0.00023836,2]
[380312534,1755655843301,-546.0,0.00023836,2]
[380312535,1755655843310,-151.17814464,0.00023836,2]
[380312536,1755655843320,-151.0,0.00023836,2]
[380312537,1755655843329,-152.25667334,0.00023836,2]
[380312538,1755655843339,-245.0,0.00023836,2]
[380312539,1755655843348,-2463.6170246,0.0002385,2]
[380312540,1755655843357,-1255.3734826,0.000239,2]
[380312541,1755655843367,-972.16,0.00024,7]
[380312542,1755655843376,-160.0,0.00024,7]
[380312543,1755655843385,-232.24568399,0.00024,7]
[380312544,1755655843395,-660.0,0.0002408,2]
[380312545,1755655843404,-480.0,0.00024109,2]
[380312546,1755655843415,-557.02,0.00024109,2]
[380312547,1755655843424,-151.0,0.0002411,2]
[380312548,1755655843433,-151.0,0.0002411,2]
[380312549,1755655843443,-546.0,0.0002411,2]
[380312550,1755655843452,-153.00135488,0.0002411,2]
[380312551,1755655843462,-516.8157058,0.00024164,2]
[380312552,1755655843474,-432.1534747,0.00024164,2]
[380312553,1755655843484,-432.1534747,0.00024164,2]
[380312554,1755655843494,-432.1534747,0.00024164,2]
[380312555,1755655843504,-432.1534747,0.00024164,2]
[380312556,1755655843513,-578.20443966,0.0002424,2]
[380312557,1755655843523,-4546.67181226,0.00024241,2]
[380312558,1755655843533,-1000.0,0.00024262,2]
[380312559,1755655843543,-500.0,0.00024285,2]
[380312560,1755655843553,-151.0,0.000243,5]
[380312561,1755655843562,-155.33,0.00024313,7]
[380312562,1755655843571,-155.44,0.00024318,7]
[380312563,1755655843582,-969.86,0.00024323,7]
[380312564,1755655843591,-539.16,0.00024383,2]
[380312565,1755655843600,-557.02,0.00024383,2]
[380312566,1755655843609,-151.0,0.00024384,2]
[380312567,1755655843619,-151.0,0.00024384,2]
[380312568,1755655843629,-546.0,0.00024384,2]
[380312569,1755655843638,-160.0,0.00024398,3]
[380312570,1755655843648,-155.33,0.00024413,7]
[380312571,1755655843661,-155.46,0.00024418,7]
[380312572,1755655843680,-969.86,0.00024423,7]
[380312573,1755655843689,-155.843531,0.00024442,10]
[380312574,1755655843698,-158.2593,0.000245,15]
[380312575,1755655843708,-155.33,0.00024513,7]
[380312576,1755655843717,-969.86,0.00024523,7]
[380312577,1755655843729,-1000.0,0.00024552,2]
[380312578,1755655843738,-1000.0,0.00024552,2]
[380312579,1755655843747,-1000.0,0.00024552,2]
[380312580,1755655843757,-151.0,0.00024552,2]
[380312581,1755655843766,-1000.0,0.00024552,2]
[380312582,1755655843776,-151.0,0.00024552,2]
[380312583,1755655843785,-151.0,0.00024552,2]
[380312584,1755655843795,-1000.0,0.00024552,2]
[380312585,1755655843804,-151.0,0.00024552,2]
[380312586,1755655843814,-300.0,0.00024552,2]
[380312587,1755655843823,-1000.0,0.00024552,2]
[380312588,1755655843833,-151.0,0.00024552,2]
[380312589,1755655843843,-300.0,0.00024552,2]
[380312590,1755655843852,-151.0,0.00024552,2]
[380312591,1755655843862,-151.0,0.00024552,2]
[380312592,1755655843871,-300.0,0.00024552,2]
[380312593,1755655843881,-151.0,0.00024552,2]
[380312594,1755655843890,-1000.0,0.00024552,2]
[380312595,1755655843900,-151.0,0.00024552,2]
[380312596,1755655843909,-300.0,0.00024552,2]
[380312597,1755655843918,-151.0,0.00024552,2]
[380312598,1755655843927,-1000.0,0.00024552,2]
[380312599,1755655843937,-151.0,0.00024552,2]
[380312600,1755655843947,-320.74982047,0.00024552,2]
[380312601,1755655843958,-1000.0,0.00024552,2]
[380312602,1755655843971,-151.0,0.00024552,2]
[380312603,1755655843984,-151.0,0.00024552,2]
[380312604,1755655843997,-1000.0,0.00024552,2]
[380312605,1755655844009,-151.0,0.00024552,2]
[380312606,1755655844020,-151.0,0.00024552,2]
[380312607,1755655844032,-1000.0,0.00024552,2]
[380312608,1755655844044,-151.0,0.00024552,2]
[380312609,1755655844056,-1000.0,0.00024552,2]
[380312610,1755655844068,-151.0,0.00024552,2]
[380312611,1755655844078,-151.0,0.00024552,2]
[380312612,1755655844091,-151.0,0.00024552,2]
[380312613,1755655844104,-1000.0,0.00024552,2]
[380312614,1755655844117,-151.0,0.00024552,2]
[380312615,1755655844129,-151.0,0.00024552,2]
[380312616,1755655844142,-151.0,0.00024552,2]
[380312617,1755655844155,-151.0,0.00024552,2]
[380312618,1755655844167,-151.0,0.00024552,2]
[380312619,1755655844179,-2183.31810187,0.00024552,2]
[380312620,1755655844191,-151.0,0.00024552,2]
[380312621,1755655844205,-151.0,0.00024552,2]
[380312622,1755655844216,-151.0,0.00024552,2]
[380312623,1755655844228,-151.0,0.00024552,2]
[380312624,1755655844240,-17842.522448,0.00024552,2]
[380312625,1755655844252,-151.0,0.00024552,2]
[380312626,1755655844265,-151.0,0.00024552,2]
[380312627,1755655844278,-151.0,0.00024552,2]
[380312628,1755655844288,-151.0,0.00024552,2]
[380312629,1755655844298,-151.0,0.00024552,2]
[380312630,1755655844309,-151.0,0.00024552,2]
[380312631,1755655844321,-288.53915465,0.00024552,2]
[380312632,1755655844332,-268.38095863,0.00024552,2]
[380312633,1755655844343,-151.0,0.00024552,2]